[Event "*** Titled Tuesday Blitz"]
[Site "Chess.com"]
[Date "2021.03.30"]
[Round "10"]
[White "MarcoRiehle"]
[Black "Mr_Sinigami"]
[Result "0-1"]
[WhiteElo "2697"]
[BlackElo "2577"]
[TimeControl "180+1"]
[EndTime "11:58:37 PDT"]
[Termination "Mr_Sinigami won by checkmate"]

1. e4 {[%clk 0:03:00.9]} 1... d5 {[%clk 0:02:59.4]} 2. exd5 {[%clk 0:03:00.5]}
2... Nf6 {[%clk 0:03:00]} 3. c4 {[%clk 0:03:00]} 3... c6 {[%clk 0:02:59.6]} 4.
Nc3 {[%clk 0:02:59.9]} 4... cxd5 {[%clk 0:02:59.9]} 5. cxd5 {[%clk 0:03:00.8]}
5... Nxd5 {[%clk 0:02:59.8]} 6. Nf3 {[%clk 0:03:00.2]} 6... Nc6 {[%clk
0:02:59.3]} 7. Bb5 {[%clk 0:02:58.5]} 7... g6 {[%clk 0:02:35.7]} 8. Qa4 {[%clk
0:02:57.5]} 8... Nb6 {[%clk 0:02:30.8]} 9. Bxc6+ {[%clk 0:02:57.2]} 9... bxc6
{[%clk 0:02:28.3]} 10. Qxc6+ {[%clk 0:02:58.1]} 10... Bd7 {[%clk 0:02:23]} 11.
Qe4 {[%clk 0:02:57.9]} 11... Bg7 {[%clk 0:02:18.2]} 12. d4 {[%clk 0:02:56.3]}
12... O-O {[%clk 0:02:09.2]} 13. O-O {[%clk 0:02:55.2]} 13... Rc8 {[%clk
0:02:04.4]} 14. Re1 {[%clk 0:02:54.7]} 14... Bc6 {[%clk 0:01:51]} 15. Qxe7
{[%clk 0:02:49.1]} 15... Bxf3 {[%clk 0:01:47.3]} 16. Qxd8 {[%clk 0:02:46.9]}
16... Rfxd8 {[%clk 0:01:44.2]} 17. gxf3 {[%clk 0:02:47.2]} 17... Bxd4 {[%clk
0:01:40.9]} 18. Bg5 {[%clk 0:02:43]} 18... f6 {[%clk 0:01:28.7]} 19. Be3 {[%clk
0:02:33.4]} 19... Bxc3 {[%clk 0:01:25.1]} 20. bxc3 {[%clk 0:02:34.3]} 20... Rxc3
{[%clk 0:01:22.4]} 21. Rab1 {[%clk 0:02:34.2]} 21... Nc4 {[%clk 0:01:10.1]} 22.
Bxa7 {[%clk 0:02:19.7]} 22... Nd2 {[%clk 0:01:03.8]} 23. Red1 {[%clk 0:02:07.5]}
23... Rcd3 {[%clk 0:00:57.4]} 24. Kg2 {[%clk 0:01:48.1]} 24... Nxb1 {[%clk
0:00:54.4]} 25. Rxb1 {[%clk 0:01:49]} 25... Ra3 {[%clk 0:00:48.8]} 26. Be3
{[%clk 0:01:46.4]} 26... Rxa2 {[%clk 0:00:38.6]} 27. Rb6 {[%clk 0:01:45.9]}
27... Re8 {[%clk 0:00:30.8]} 28. Kg3 {[%clk 0:01:45]} 28... Kf7 {[%clk
0:00:26.6]} 29. h4 {[%clk 0:01:43.7]} 29... Ra5 {[%clk 0:00:22.4]} 30. Rb3
{[%clk 0:01:40.1]} 30... Rf5 {[%clk 0:00:21.7]} 31. Rc3 {[%clk 0:01:37.8]} 31...
Re7 {[%clk 0:00:21.8]} 32. Rb3 {[%clk 0:01:37.8]} 32... Rd7 {[%clk 0:00:22]} 33.
Rc3 {[%clk 0:01:36.8]} 33... h5 {[%clk 0:00:22.2]} 34. Rb3 {[%clk 0:01:35.5]}
34... Rfd5 {[%clk 0:00:22.3]} 35. Rb6 {[%clk 0:01:32.4]} 35... R5d6 {[%clk
0:00:22.2]} 36. Rb8 {[%clk 0:01:32.4]} 36... Rd3 {[%clk 0:00:22.1]} 37. Bc5
{[%clk 0:01:29.8]} 37... Rc3 {[%clk 0:00:20.9]} 38. Be3 {[%clk 0:01:29.5]} 38...
Rcd3 {[%clk 0:00:19.8]} 39. Bc5 {[%clk 0:01:28.3]} 39... Rd1 {[%clk 0:00:19.6]}
40. Rf8+ {[%clk 0:01:25.1]} 40... Kg7 {[%clk 0:00:19.5]} 41. Ra8 {[%clk
0:01:25.5]} 41... Rc1 {[%clk 0:00:18.8]} 42. Be3 {[%clk 0:01:25]} 42... Rb1
{[%clk 0:00:18.8]} 43. Ra6 {[%clk 0:01:23.4]} 43... Rb5 {[%clk 0:00:18]} 44. Rc6
{[%clk 0:01:19.8]} 44... Rbd5 {[%clk 0:00:17.3]} 45. Ra6 {[%clk 0:01:19.3]}
45... Re7 {[%clk 0:00:17.7]} 46. Rb6 {[%clk 0:01:18]} 46... Rde5 {[%clk
0:00:17]} 47. Bd4 {[%clk 0:01:14.6]} 47... R5e6 {[%clk 0:00:16.5]} 48. Rb8
{[%clk 0:01:14.6]} 48... Rd7 {[%clk 0:00:16.5]} 49. Be3 {[%clk 0:01:14]} 49...
Re5 {[%clk 0:00:16.8]} 50. Rb6 {[%clk 0:01:13]} 50... Red5 {[%clk 0:00:17]} 51.
Rc6 {[%clk 0:01:12.5]} 51... g5 {[%clk 0:00:16.9]} 52. Ra6 {[%clk 0:01:00.4]}
52... gxh4+ {[%clk 0:00:15.3]} 53. Kxh4 {[%clk 0:01:01.3]} 53... Kg6 {[%clk
0:00:15.6]} 54. Ra8 {[%clk 0:01:01.1]} 54... Rf5 {[%clk 0:00:15.2]} 55. Rg8+
{[%clk 0:00:59.4]} 55... Rg7 {[%clk 0:00:14.8]} 56. Rh8 {[%clk 0:00:56.1]} 56...
Rxf3 {[%clk 0:00:13.6]} 57. Rh6+ {[%clk 0:00:55.6]} 57... Kf7 {[%clk 0:00:13.4]}
58. Rxh5 {[%clk 0:00:54]} 58... Ke6 {[%clk 0:00:11.6]} 59. Ra5 {[%clk
0:00:49.5]} 59... Rf5 {[%clk 0:00:11.5]} 60. Ra6+ {[%clk 0:00:48.7]} 60... Kf7
{[%clk 0:00:11.7]} 61. Ra7+ {[%clk 0:00:47.2]} 61... Kg8 {[%clk 0:00:12.1]} 62.
Ra8+ {[%clk 0:00:46.7]} 62... Kh7 {[%clk 0:00:12]} 63. Ra1 {[%clk 0:00:47]}
63... Rd5 {[%clk 0:00:11.8]} 64. Ra6 {[%clk 0:00:43.9]} 64... Rd1 {[%clk
0:00:11.4]} 65. Rxf6 {[%clk 0:00:33.6]} 65... Rh1# {[%clk 0:00:11.4]} 0-1

[Event "*** Titled Tuesday Blitz"]
[Site "Chess.com"]
[Date "2021.03.30"]
[Round "10"]
[White "Agoking701"]
[Black "MasterKroket"]
[Result "1-0"]
[WhiteElo "2355"]
[BlackElo "2519"]
[TimeControl "180+1"]
[EndTime "11:58:38 PDT"]
[Termination "Agoking701 won by resignation"]

1. e4 {[%clk 0:02:52]} 1... c5 {[%clk 0:02:59.7]} 2. Nf3 {[%clk 0:02:52]} 2...
e6 {[%clk 0:02:59.9]} 3. d4 {[%clk 0:02:49.1]} 3... cxd4 {[%clk 0:03:00.8]} 4.
Nxd4 {[%clk 0:02:49.9]} 4... Nc6 {[%clk 0:03:01.4]} 5. Nxc6 {[%clk 0:02:47.9]}
5... bxc6 {[%clk 0:03:01.1]} 6. Bd3 {[%clk 0:02:48.8]} 6... d5 {[%clk
0:03:01.4]} 7. O-O {[%clk 0:02:48.6]} 7... Nf6 {[%clk 0:02:59.4]} 8. Nd2 {[%clk
0:02:39.6]} 8... Be7 {[%clk 0:02:58]} 9. Re1 {[%clk 0:02:37.5]} 9... O-O {[%clk
0:02:57.5]} 10. Qf3 {[%clk 0:02:32.7]} 10... c5 {[%clk 0:02:44.3]} 11. b3 {[%clk
0:02:18.4]} 11... Bb7 {[%clk 0:02:39.4]} 12. Bb2 {[%clk 0:02:16.4]} 12... Nd7
{[%clk 0:02:35.4]} 13. Rad1 {[%clk 0:02:14]} 13... Bf6 {[%clk 0:02:32.5]} 14.
Bxf6 {[%clk 0:02:10.2]} 14... Qxf6 {[%clk 0:02:32.3]} 15. exd5 {[%clk
0:02:07.8]} 15... exd5 {[%clk 0:02:23]} 16. Qh3 {[%clk 0:01:55]} 16... g6 {[%clk
0:01:53.4]} 17. Qxd7 {[%clk 0:01:46.6]} 17... Rab8 {[%clk 0:01:53.7]} 18. Qe7
{[%clk 0:01:28.9]} 18... Qc3 {[%clk 0:01:50.3]} 19. Nb1 {[%clk 0:01:25.5]} 19...
Qb4 {[%clk 0:01:48.5]} 20. a3 {[%clk 0:01:17.1]} 20... Qb6 {[%clk 0:01:48.3]}
21. Nc3 {[%clk 0:01:13]} 21... Qa5 {[%clk 0:01:42.2]} 22. b4 {[%clk 0:00:47.8]}
22... cxb4 {[%clk 0:01:38.6]} 23. axb4 {[%clk 0:00:46.4]} 23... Qb6 {[%clk
0:01:38.8]} 24. Na4 {[%clk 0:00:45.7]} 24... Qc6 {[%clk 0:01:34.9]} 25. Nc5
{[%clk 0:00:43.1]} 25... Rfe8 {[%clk 0:01:30.9]} 26. Qg5 {[%clk 0:00:43.1]}
26... Bc8 {[%clk 0:01:22.5]} 27. Rxe8+ {[%clk 0:00:39.8]} 27... Qxe8 {[%clk
0:01:23.4]} 28. Qd2 {[%clk 0:00:33.9]} 28... d4 {[%clk 0:01:17.7]} 29. Re1
{[%clk 0:00:33.6]} 29... Qd8 {[%clk 0:01:18.1]} 30. Bc4 {[%clk 0:00:28.4]} 30...
Bf5 {[%clk 0:01:09.3]} 31. Bb3 {[%clk 0:00:26.5]} 31... Qd6 {[%clk 0:01:03.6]}
32. h3 {[%clk 0:00:24.2]} 32... a5 {[%clk 0:01:02]} 33. Ne4 {[%clk 0:00:20.3]}
33... Bxe4 {[%clk 0:00:55.9]} 34. Rxe4 {[%clk 0:00:21.2]} 34... Rxb4 {[%clk
0:00:56.5]} 35. Re8+ {[%clk 0:00:19]} 35... Kg7 {[%clk 0:00:56.3]} 36. Qd3
{[%clk 0:00:14.6]} 36... a4 {[%clk 0:00:54.9]} 37. Ba2 {[%clk 0:00:14.4]} 37...
a3 {[%clk 0:00:44.1]} 38. g3 {[%clk 0:00:10.5]} 38... Qd7 {[%clk 0:00:34.7]} 39.
Re4 {[%clk 0:00:09]} 39... Qxh3 {[%clk 0:00:25.1]} 40. Rf4 {[%clk 0:00:08.3]}
40... f5 {[%clk 0:00:17]} 41. Rxd4 {[%clk 0:00:07.2]} 41... Rb7 {[%clk
0:00:12.1]} 42. Rd7+ {[%clk 0:00:06.9]} 42... Rxd7 {[%clk 0:00:12.3]} 43. Qxd7+
{[%clk 0:00:07.8]} 43... Kh6 {[%clk 0:00:13]} 44. Qd4 {[%clk 0:00:06.3]} 44...
g5 {[%clk 0:00:10.9]} 45. Qf6+ {[%clk 0:00:05.8]} 45... Kh5 {[%clk 0:00:11.1]}
46. Bf7+ {[%clk 0:00:06.4]} 46... Kg4 {[%clk 0:00:11.2]} 47. Qd4+ {[%clk
0:00:06.3]} 47... Kf3 {[%clk 0:00:10.1]} 48. Bd5+ {[%clk 0:00:06.1]} 48... Ke2
{[%clk 0:00:09.6]} 49. Qe3+ {[%clk 0:00:05.4]} 49... Kd1 {[%clk 0:00:10]} 50.
Qd3+ {[%clk 0:00:05.5]} 50... Kc1 {[%clk 0:00:10.1]} 51. Qf1+ {[%clk 0:00:04.7]}
51... Kb2 {[%clk 0:00:10.3]} 52. Qxh3 {[%clk 0:00:04.6]} 52... a2 {[%clk
0:00:10.2]} 53. Bxa2 {[%clk 0:00:03.7]} 53... Kxa2 {[%clk 0:00:10.8]} 54. Qxh7
{[%clk 0:00:04.4]} 54... Kb2 {[%clk 0:00:11.1]} 55. Qxf5 {[%clk 0:00:05.3]} 1-0

[Event "*** Titled Tuesday Blitz"]
[Site "Chess.com"]
[Date "2021.03.30"]
[Round "10"]
[White "anasta10"]
[Black "Bathory44"]
[Result "1-0"]
[WhiteElo "2523"]
[BlackElo "2648"]
[TimeControl "180+1"]
[EndTime "11:58:39 PDT"]
[Termination "anasta10 won on time"]

1. d4 {[%clk 0:03:00.9]} 1... d5 {[%clk 0:02:59.3]} 2. c4 {[%clk 0:03:01]} 2...
e6 {[%clk 0:02:59.5]} 3. Nc3 {[%clk 0:02:59.9]} 3... c6 {[%clk 0:03:00]} 4. e3
{[%clk 0:02:59.6]} 4... Bd6 {[%clk 0:02:57.8]} 5. Nf3 {[%clk 0:02:59.8]} 5... f5
{[%clk 0:02:57]} 6. b3 {[%clk 0:02:59.4]} 6... Nf6 {[%clk 0:02:56.3]} 7. a4
{[%clk 0:02:59.6]} 7... Qe7 {[%clk 0:02:54.4]} 8. Bd3 {[%clk 0:02:59.2]} 8...
O-O {[%clk 0:02:51.8]} 9. O-O {[%clk 0:02:59]} 9... Ne4 {[%clk 0:02:50.5]} 10.
Nb1 {[%clk 0:02:57.9]} 10... a5 {[%clk 0:02:38.2]} 11. Ba3 {[%clk 0:02:54.4]}
11... Bb4 {[%clk 0:02:31.6]} 12. Ne5 {[%clk 0:02:49.1]} 12... Nd7 {[%clk
0:02:29.8]} 13. Nxd7 {[%clk 0:02:43.9]} 13... Bxd7 {[%clk 0:02:29.4]} 14. f3
{[%clk 0:02:43.8]} 14... Nf6 {[%clk 0:02:16.1]} 15. Bxb4 {[%clk 0:02:27.9]}
15... axb4 {[%clk 0:02:17]} 16. Nd2 {[%clk 0:02:21.5]} 16... e5 {[%clk
0:02:15.2]} 17. Re1 {[%clk 0:02:14.9]} 17... e4 {[%clk 0:02:13.3]} 18. Bf1
{[%clk 0:02:14.3]} 18... Be8 {[%clk 0:01:54.5]} 19. cxd5 {[%clk 0:02:03.9]}
19... cxd5 {[%clk 0:01:48.3]} 20. Qc2 {[%clk 0:01:58.6]} 20... Bh5 {[%clk
0:01:43.9]} 21. Qc5 {[%clk 0:01:57.4]} 21... Qxc5 {[%clk 0:01:37.4]} 22. dxc5
{[%clk 0:01:58.3]} 22... Rfc8 {[%clk 0:01:37.7]} 23. Rac1 {[%clk 0:01:46.4]}
23... Nd7 {[%clk 0:01:38]} 24. g4 {[%clk 0:01:38.7]} 24... fxg4 {[%clk
0:01:04.5]} 25. fxe4 {[%clk 0:01:37.4]} 25... Bf7 {[%clk 0:01:00.9]} 26. Bg2
{[%clk 0:01:05.3]} 26... Rxc5 {[%clk 0:00:35]} 27. exd5 {[%clk 0:01:03.4]} 27...
Rc3 {[%clk 0:00:31.9]} 28. Rxc3 {[%clk 0:00:48.3]} 28... bxc3 {[%clk 0:00:31.7]}
29. Nc4 {[%clk 0:00:44.1]} 29... Nc5 {[%clk 0:00:26.1]} 30. Rc1 {[%clk
0:00:31.7]} 30... Rd8 {[%clk 0:00:22.8]} 31. Rxc3 {[%clk 0:00:28.8]} 31... Bxd5
{[%clk 0:00:21.8]} 32. Bxd5+ {[%clk 0:00:27.4]} 32... Rxd5 {[%clk 0:00:21.5]}
33. Nb6 {[%clk 0:00:20.5]} 33... Rd1+ {[%clk 0:00:21.4]} 34. Kg2 {[%clk
0:00:20.9]} 34... Rd2+ {[%clk 0:00:21.8]} 35. Kg1 {[%clk 0:00:19.7]} 35... Ne4
{[%clk 0:00:18.1]} 36. Rc4 {[%clk 0:00:17.8]} 36... Nf2 {[%clk 0:00:16.4]} 37.
a5 {[%clk 0:00:11.7]} 37... Nh3+ {[%clk 0:00:12.9]} 38. Kf1 {[%clk 0:00:11.9]}
38... Rf2+ {[%clk 0:00:10.4]} 39. Ke1 {[%clk 0:00:11.9]} 39... Rxh2 {[%clk
0:00:10.6]} 40. Rxg4 {[%clk 0:00:10.8]} 40... Rb2 {[%clk 0:00:10.5]} 41. Rb4
{[%clk 0:00:09.4]} 41... h5 {[%clk 0:00:09.4]} 42. Nc4 {[%clk 0:00:06.9]} 42...
Rb1+ {[%clk 0:00:06.9]} 43. Kd2 {[%clk 0:00:06.7]} 43... Ng5 {[%clk 0:00:07.4]}
44. Ne5 {[%clk 0:00:04.8]} 44... Ra1 {[%clk 0:00:04.3]} 45. Rxb7 {[%clk
0:00:03.2]} 45... Rxa5 {[%clk 0:00:04.2]} 46. Rb8+ {[%clk 0:00:03.3]} 46... Kh7
{[%clk 0:00:04.3]} 47. Nc4 {[%clk 0:00:04.2]} 47... Rd5+ {[%clk 0:00:03.5]} 48.
Ke2 {[%clk 0:00:04.7]} 48... h4 {[%clk 0:00:03.7]} 49. Kf2 {[%clk 0:00:03.6]}
49... Rf5+ {[%clk 0:00:01.5]} 50. Kg1 {[%clk 0:00:03.5]} 1-0

[Event "*** Titled Tuesday Blitz"]
[Site "Chess.com"]
[Date "2021.03.30"]
[Round "10"]
[White "Terao90"]
[Black "GregShahade"]
[Result "0-1"]
[WhiteElo "2554"]
[BlackElo "2708"]
[TimeControl "180+1"]
[EndTime "11:58:41 PDT"]
[Termination "GregShahade won on time"]

1. Nf3 {[%clk 0:03:00.3]} 1... Nf6 {[%clk 0:02:59.9]} 2. b3 {[%clk 0:02:59.6]}
2... g6 {[%clk 0:02:58]} 3. Bb2 {[%clk 0:02:59.1]} 3... Bg7 {[%clk 0:02:58.7]}
4. g3 {[%clk 0:02:58]} 4... b5 {[%clk 0:02:59]} 5. Bg2 {[%clk 0:02:57.7]} 5...
Bb7 {[%clk 0:02:59.6]} 6. O-O {[%clk 0:02:57.7]} 6... O-O {[%clk 0:02:59.8]} 7.
d4 {[%clk 0:02:56.2]} 7... d6 {[%clk 0:02:55]} 8. Nbd2 {[%clk 0:02:51.2]} 8...
c5 {[%clk 0:02:49.2]} 9. c4 {[%clk 0:02:49.8]} 9... bxc4 {[%clk 0:02:44.6]} 10.
Nxc4 {[%clk 0:02:49.5]} 10... Nbd7 {[%clk 0:02:41.9]} 11. Rc1 {[%clk 0:02:44.8]}
11... Rc8 {[%clk 0:02:36]} 12. e3 {[%clk 0:02:39.5]} 12... Qc7 {[%clk
0:02:23.2]} 13. Qe2 {[%clk 0:02:33.9]} 13... Ba6 {[%clk 0:02:19.2]} 14. e4
{[%clk 0:01:48.9]} 14... Nb6 {[%clk 0:02:10.1]} 15. dxc5 {[%clk 0:01:40.7]}
15... Qxc5 {[%clk 0:01:28.8]} 16. Nfd2 {[%clk 0:01:33.1]} 16... Nxc4 {[%clk
0:01:14.5]} 17. Nxc4 {[%clk 0:01:32.7]} 17... Nd7 {[%clk 0:01:06.3]} 18. Bxg7
{[%clk 0:01:25.4]} 18... Kxg7 {[%clk 0:01:07.2]} 19. Qb2+ {[%clk 0:01:25.8]}
19... Kg8 {[%clk 0:01:03.5]} 20. Bh3 {[%clk 0:01:24.4]} 20... Qb5 {[%clk
0:00:48.4]} 21. Rfd1 {[%clk 0:01:16]} 21... Rc5 {[%clk 0:00:41.7]} 22. Ne3
{[%clk 0:00:36.1]} 22... Nf6 {[%clk 0:00:26.6]} 23. Bf1 {[%clk 0:00:30.9]} 23...
Qb7 {[%clk 0:00:22.7]} 24. Rxc5 {[%clk 0:00:27.3]} 24... dxc5 {[%clk 0:00:20]}
25. Bxa6 {[%clk 0:00:27.4]} 25... Qxa6 {[%clk 0:00:20.9]} 26. e5 {[%clk
0:00:26.1]} 26... Ne4 {[%clk 0:00:15.7]} 27. Nd5 {[%clk 0:00:23.5]} 27... Qe6
{[%clk 0:00:15.6]} 28. Qe2 {[%clk 0:00:17.4]} 28... Ng5 {[%clk 0:00:15.3]} 29.
f4 {[%clk 0:00:14.1]} 29... Nh3+ {[%clk 0:00:12.4]} 30. Kg2 {[%clk 0:00:14.6]}
30... g5 {[%clk 0:00:12.8]} 31. f5 {[%clk 0:00:13.3]} 31... Qh6 {[%clk
0:00:11.7]} 32. Nxe7+ {[%clk 0:00:04.2]} 32... Kh8 {[%clk 0:00:11.6]} 33. f6
{[%clk 0:00:05.1]} 33... g4 {[%clk 0:00:08.7]} 34. Nf5 {[%clk 0:00:04.9]} 34...
Qg5 {[%clk 0:00:07.8]} 35. Nd6 {[%clk 0:00:04.9]} 35... h5 {[%clk 0:00:06.7]}
36. Rf1 {[%clk 0:00:05.1]} 36... h4 {[%clk 0:00:06.8]} 37. Rf5 {[%clk
0:00:05.4]} 37... Qg6 {[%clk 0:00:05.4]} 38. gxh4 {[%clk 0:00:05.9]} 38... Qxf5
{[%clk 0:00:04.6]} 39. Nxf5 {[%clk 0:00:05.6]} 39... Nf4+ {[%clk 0:00:05.3]} 40.
Kf2 {[%clk 0:00:06.3]} 40... Nxe2 {[%clk 0:00:06]} 41. Kxe2 {[%clk 0:00:07.2]}
41... Re8 {[%clk 0:00:06.6]} 42. Ne7 {[%clk 0:00:06.3]} 42... a5 {[%clk
0:00:06.6]} 43. Ke3 {[%clk 0:00:06.5]} 43... a4 {[%clk 0:00:06.8]} 44. Kf4
{[%clk 0:00:06]} 44... axb3 {[%clk 0:00:07.1]} 45. axb3 {[%clk 0:00:06.2]} 45...
Rb8 {[%clk 0:00:07.7]} 46. Kxg4 {[%clk 0:00:04.1]} 46... Rxb3 {[%clk 0:00:07.9]}
47. Kf5 {[%clk 0:00:01.8]} 47... c4 {[%clk 0:00:08]} 48. e6 {[%clk 0:00:02.4]}
48... fxe6+ {[%clk 0:00:06.8]} 49. Kxe6 {[%clk 0:00:02.9]} 49... Re3+ {[%clk
0:00:07.5]} 50. Kf5 {[%clk 0:00:01.9]} 50... Rf3+ {[%clk 0:00:07.5]} 51. Ke5
{[%clk 0:00:02.1]} 51... c3 {[%clk 0:00:07.7]} 52. Nf5 {[%clk 0:00:02.7]} 52...
c2 {[%clk 0:00:07.1]} 53. f7 {[%clk 0:00:03.2]} 53... Rxf5+ {[%clk 0:00:07.6]}
54. Kxf5 {[%clk 0:00:03.5]} 54... Kg7 {[%clk 0:00:08.3]} 55. Kg5 {[%clk
0:00:03.7]} 55... Kxf7 {[%clk 0:00:08.7]} 0-1

[Event "*** Titled Tuesday Blitz"]
[Site "Chess.com"]
[Date "2021.03.30"]
[Round "10"]
[White "andriipalchuk"]
[Black "GMHess"]
[Result "1-0"]
[WhiteElo "2633"]
[BlackElo "2748"]
[TimeControl "180+1"]
[EndTime "11:58:42 PDT"]
[Termination "andriipalchuk won on time"]

1. d4 {[%clk 0:02:59.4]} 1... g6 {[%clk 0:03:00.9]} 2. c4 {[%clk 0:02:59.3]}
2... Bg7 {[%clk 0:03:01.5]} 3. Nf3 {[%clk 0:03:00]} 3... c5 {[%clk 0:03:01.3]}
4. d5 {[%clk 0:02:58.9]} 4... f5 {[%clk 0:03:01.5]} 5. g3 {[%clk 0:02:58]} 5...
d6 {[%clk 0:03:01.2]} 6. Bg2 {[%clk 0:02:58.7]} 6... Nf6 {[%clk 0:02:50.2]} 7.
O-O {[%clk 0:02:54.7]} 7... O-O {[%clk 0:02:50.8]} 8. Qc2 {[%clk 0:02:51.9]}
8... b5 {[%clk 0:02:47]} 9. cxb5 {[%clk 0:02:51]} 9... a6 {[%clk 0:02:47.2]} 10.
bxa6 {[%clk 0:02:51.1]} 10... Nxa6 {[%clk 0:02:47.4]} 11. Nc3 {[%clk 0:02:49.4]}
11... Nb4 {[%clk 0:02:36.9]} 12. Qd1 {[%clk 0:02:49.4]} 12... Qb6 {[%clk
0:02:36.7]} 13. Be3 {[%clk 0:02:35.1]} 13... Bd7 {[%clk 0:02:26.3]} 14. a3
{[%clk 0:02:34.4]} 14... Na6 {[%clk 0:02:24.6]} 15. Qc2 {[%clk 0:02:27.7]} 15...
Rfb8 {[%clk 0:02:20.2]} 16. Rab1 {[%clk 0:02:27.1]} 16... Ng4 {[%clk 0:02:13.4]}
17. Bd2 {[%clk 0:02:04.9]} 17... Qb3 {[%clk 0:01:55.4]} 18. Qc1 {[%clk
0:01:44.1]} 18... Nc7 {[%clk 0:01:49.6]} 19. Bg5 {[%clk 0:01:42]} 19... Bxc3
{[%clk 0:00:44.5]} 20. Qxc3 {[%clk 0:01:32.8]} 20... Qxc3 {[%clk 0:00:39.1]} 21.
bxc3 {[%clk 0:01:33.7]} 21... Kf7 {[%clk 0:00:25.8]} 22. h3 {[%clk 0:01:25.6]}
22... Nf6 {[%clk 0:00:25.6]} 23. Nd2 {[%clk 0:01:21]} 23... Nb5 {[%clk
0:00:17.9]} 24. c4 {[%clk 0:01:11.7]} 24... Nc3 {[%clk 0:00:14]} 25. Rbe1 {[%clk
0:01:03]} 25... Rxa3 {[%clk 0:00:13.1]} 26. Nb1 {[%clk 0:00:41.3]} 26... Rab3
{[%clk 0:00:06.7]} 27. Nxc3 {[%clk 0:00:36.2]} 27... Rxc3 {[%clk 0:00:07.6]} 28.
Rc1 {[%clk 0:00:36.8]} 28... Rcb3 {[%clk 0:00:06.4]} 29. h4 {[%clk 0:00:32.2]}
29... Rb2 {[%clk 0:00:05.4]} 30. Bf3 {[%clk 0:00:31.7]} 30... Ne4 {[%clk
0:00:04.7]} 31. Be3 {[%clk 0:00:31]} 31... Nd2 {[%clk 0:00:03.4]} 32. Rfd1
{[%clk 0:00:22.1]} 32... Nxf3+ {[%clk 0:00:03.2]} 33. exf3 {[%clk 0:00:23]}
33... Ba4 {[%clk 0:00:03]} 34. Re1 {[%clk 0:00:23.1]} 34... Bc2 {[%clk
0:00:03.1]} 35. Bg5 {[%clk 0:00:23]} 35... R8b7 {[%clk 0:00:03.3]} 36. Re3
{[%clk 0:00:21]} 36... Bb3 {[%clk 0:00:02.9]} 37. Rce1 {[%clk 0:00:20.1]} 37...
Bxc4 {[%clk 0:00:03.1]} 38. Rxe7+ {[%clk 0:00:20.1]} 38... Rxe7 {[%clk
0:00:03.4]} 39. Rxe7+ {[%clk 0:00:21]} 39... Kf8 {[%clk 0:00:02.1]} 40. Rxh7
{[%clk 0:00:20.2]} 40... Bxd5 {[%clk 0:00:02.6]} 41. Kg2 {[%clk 0:00:15.4]}
41... Rb3 {[%clk 0:00:02.8]} 42. Bh6+ {[%clk 0:00:10.1]} 42... Kg8 {[%clk
0:00:02.4]} 43. Rg7+ {[%clk 0:00:10.5]} 43... Kh8 {[%clk 0:00:03.2]} 44. Kh2
{[%clk 0:00:04.9]} 44... Bxf3 {[%clk 0:00:03.5]} 45. Re7 {[%clk 0:00:05.4]}
45... Rb1 {[%clk 0:00:02.9]} 46. g4 {[%clk 0:00:05.9]} 46... f4 {[%clk
0:00:02.5]} 47. Bxf4 {[%clk 0:00:05.5]} 47... d5 {[%clk 0:00:02.9]} 48. Be5+
{[%clk 0:00:05.5]} 48... Kg8 {[%clk 0:00:03.3]} 49. Kg3 {[%clk 0:00:06.4]} 49...
Be4 {[%clk 0:00:03.4]} 50. Kf4 {[%clk 0:00:05.9]} 50... Rb3 {[%clk 0:00:03.5]}
51. Kg5 {[%clk 0:00:06]} 51... Rf3 {[%clk 0:00:03.8]} 52. Kh6 {[%clk 0:00:05.9]}
52... Rxf2 {[%clk 0:00:03.5]} 53. Bd6 {[%clk 0:00:05.7]} 53... c4 {[%clk
0:00:03]} 54. Rg7+ {[%clk 0:00:05]} 54... Kh8 {[%clk 0:00:02.9]} 55. Be5 {[%clk
0:00:05.7]} 1-0